Cogmind - Beta 13 @@@ ROGUE MODE // 2024.05.03 @ 06:59:08 Player: BionicBot Result: Destroyed by 4V-RUW(R) with Subdweller Laser Performance ------------- Evolutions (0) 0 Regions Visited (2) 400 Robots Destroyed (33) 165 Value Destroyed (724) 724 Prototype IDs (4) 80 Alien Tech Used (0) 0 Bonus (0) 0 TOTAL SCORE: 1369 Bonus ------- None Cogmind --------- Core Integrity 0/250 Matter 214/300 Energy 192/200 System Corruption 13% Temperature Cool (60) Movement Walking (130) Location -10/Subcaves Parts ------- > --- POWER (1) -------- Subdweller Power Source > --- PROPULSION (2) --- Aluminum Leg Makeshift Leg > --- UTILITY (2) ------ Small Storage Unit Signal Interpreter > --- WEAPON (2) ------- Subdweller Laser Subdweller Beam Cannon > --- INVENTORY (8) ---- Light Ion Engine Subdweller Power Source Subdweller Optics Makeshift Kinetic Plating Subdweller Laser Subdweller Laser Subdweller Machine Gun Enhanced Flamer Peak State ------------ > --- POWER ------------ Subdweller Power Source > --- PROPULSION ------- Aluminum Leg Makeshift Leg > --- UTILITY ---------- Small Storage Unit Signal Interpreter > --- WEAPON ----------- Subdweller Beam Cannon Subdweller Machine Gun > --- INVENTORY -------- Ion Engine Light Ion Engine Light Ion Engine Makeshift Kinetic Plating EM Pulse Gun Subdweller Laser Subdweller Laser [Rating: 14] Favorites ----------- Power Subdweller Power Source Engine Subdweller Power Source Propulsion Aluminum Leg Treads Light Treads Leg Aluminum Leg Wheel Compact Wheel Utility Small Storage Unit Device Improved Terrain Scanner Storage Small Storage Unit Processor Signal Interpreter Weapon Grenade Launcher Energy Gun Small Laser Energy Cannon Subdweller Beam Cannon Ballistic Gun Subdweller Machine Gun Launcher Grenade Launcher Special Weapon Flamer Build | -11 -10 -10 ------- Run | Yrd Mat Sub Slots Evolved . | . . . Power . | . . . Propulsion . | . . . Utility . | . . . Weapon . | . . . Parts Attached 39 | 7 10 22 Power 8 | 1 3 4 Engine 8 | 1 3 4 Core . | . . . Reactor . | . . . Propulsion 10 | 2 4 4 Treads 2 | . 2 . Leg 4 | 2 . 2 Wheel 4 | . 2 2 Hover . | . . . Flight . | . . . Utility 3 | 2 . 1 Device 1 | 1 . . Storage 1 | 1 . . Processor 1 | . . 1 Hackware . | . . . Protection . | . . . Artifact . | . . . Weapon 18 | 2 3 13 Energy Gun 6 | 1 1 4 Energy Cannon 2 | . . 2 Ballistic Gun 2 | 1 . 1 Ballistic Cannon . | . . . Launcher 4 | . 2 2 Special Weapon 4 | . . 4 Impact Weapon . | . . . Slashing Weapon . | . . . Piercing Weapon . | . . . Special Melee Weapon . | . . . Unidentified Prototypes . | . . . Corrupted Parts 3 | . . 3 System Corruption 9 | . . 9 Parts Lost 11 | . 3 8 Power 3 | . 2 1 Propulsion 3 | . 1 2 Utility 1 | . . 1 Weapon 4 | . . 4 Highest Loss Streak 4 | . 2 4 To Critical Strikes 1 | . . 1 Average Slot Usage (%) 88 | . 95 82 Engine 13 | . 12 13 Treads 5 | . 7 3 Leg 7 | . 8 6 Wheel 5 | . 9 2 Device 7 | . 14 1 Storage 14 | . 14 14 Processor 6 | . . 12 Energy Gun 6 | . 10 3 Energy Cannon 5 | . . 10 Ballistic Gun 7 | . 6 9 Launcher 6 | . 11 1 Special Weapon 1 | . . 3 Naked Turns . | . . . Heaviest Build 22 | 12 15 22 Greatest Support 40 | 20 40 40 Greatest Overweight (x) 7 | . 2 7 Average Overweight (x) 1 | . . 2 Largest Inventory Capacity 8 | 8 8 8 Average Capacity 7 | 7 8 8 Most Carried 8 | . 8 8 Average Carried 5 | . 4 6 Final Capacity 8 | 8 8 8 Final Carried 8 | . 8 8 Class Distribution -------------------- 79% | Mutant 20% | Scavenger-Mutant Dominant Class ---------------- Mutant | -10/Materials Mutant | -10/Subcaves Resources | -11 -10 -10 ----------- Run | Yrd Mat Sub Matter Collected 913 | 224 339 350 Remotely . | . . . Salvage Created 826 | 67 402 357 Parts 63 | 12 34 17 Haulers Intercepted 1 | . 1 . Recyclers Shooed 2 | . 2 . Parts Field Recycled . | . . . Retrieved Matter . | . . . Parts Self-Destructed 14 | . . 14 Prevented . | . . . Kills | -11 -10 -10 ------- Run | Yrd Mat Sub Combat Hostiles Destroyed 21 | . 11 10 Guns 10 | . 4 6 Cannons 2 | . . 2 AOE 9 | . 7 2 Classes Destroyed 8 | 1 6 1 Builder 2 | . 2 . Tunneler 5 | 4 1 . Hauler 1 | . 1 . Recycler 2 | . 2 . Watcher 2 | . 2 . Swarmer 8 | . 6 2 Grunt 5 | . 5 . Subdweller 8 | . . 8 Best Kill Streak 5 | 3 5 2 Combat Bots Only 4 | . 4 2 Max Kills in Single Turn 2 | 1 2 1 Gunslinging . | . . . Exploded 2 | . 2 1 Melee . | . . . Uniques/NPCs Destroyed . | . . . Combat | -11 -10 -10 -------- Run | Yrd Mat Sub Hostile Shots Fired 111 | . 44 67 Missed 37 | . 12 25 Damage Taken 1338 | . 451 887 Core 259 | . 52 207 Absorbed by Shields . | . . . Core Remaining (%) 100 | 100 . . Volleys Fired 97 | 6 60 31 Largest 2 | 2 2 2 Hottest 200 | 60 70 200 Shots Fired 158 | 12 89 57 Gun 124 | 12 78 34 Cannon 7 | . . 7 Launcher 19 | . 11 8 Special 8 | . . 8 Kinetic 54 | 6 43 5 Thermal 75 | 6 35 34 Explosive 19 | . 11 8 Electromagnetic 10 | . . 10 Robot Hit Streak 12 | 4 12 12 Robot Miss Streak 3 | 2 3 3 Penetration Max . | . . . Secondary Targets 1 | . . 1 Max Gunslinging Chain 1 | . . 1 Shots Hit Robots 97 | 6 50 41 Core Hits 51 | 4 27 20 Critical Kills 1 | . 1 . Critical Parts Destroyed . | . . . Critical Strikes 1 | . 1 . Destroy 1 | . 1 . Melee Attacks . | . . . Impact . | . . . Slashing . | . . . Piercing . | . . . Sneak Attacks . | . . . Combat Hostiles . | . . . Follow-up Attacks . | . . . Damage Inflicted 2391 | 88 1405 898 Guns 1064 | 85 534 445 Cannons 111 | . . 111 Explosions 1116 | . 852 264 Melee . | . . . Ramming 22 | 3 19 . Kinetic 475 | 42 332 101 Thermal 679 | 43 202 434 Explosive 1039 | . 775 264 Electromagnetic 176 | . 77 99 Impact . | . . . Slashing . | . . . Piercing . | . . . Highest Corruption 13 | . 4 13 Average Corruption 8 | . 3 11 Corruption Purged . | . . . Corruption Blocked . | . . . Effects 62 | . 21 41 Message Errors 9 | . 2 7 Matter Fused 16 | . 6 10 Heat Flow Errors 7 | . 3 4 Energy Discharges 6 | . 2 4 Parts Rejected 2 | . . 2 Parts Fused 2 | . 1 1 Data Loss (minor) 8 | . 4 4 Data Loss (major) 6 | . 2 4 Alerts 4 | . . 4 Weapon Failures 2 | . 1 1 Overload Shots . | . . . Overflow Damage 20 | . 20 . Projectiles . | . . . Explosions 20 | . 20 . Melee . | . . . Knockbacks . | . . . Impact . | . . . Kinetic . | . . . Secondary . | . . . Self-Inflicted Damage 167 | . 156 11 Shots 7 | . 6 1 Rammed 2 | . 2 . Targets Rammed 5 | 2 3 . Kicked 3 | 2 1 . Crushed . | . . . Highest Temperature 292 | . 255 292 Average Temperature 75 | . 82 71 Received Heat Transfer 615 | . 72 543 Siege Activations . | . . . Robots Corrupted . | . . . Combat Hostiles . | . . . Parts Fried 1 | . . 1 Impact Corruptions . | . . . Robots Melted . | . . . Combat Hostiles . | . . . Parts Melted 2 | . . 2 Heat Transferred 1608 | 100 450 1058 Parts Sabotaged . | . . . Parts Stolen . | . . . Parts Stripped . | . . . Power Chain Reactions . | . . . Alert | -11 -10 -10 ------- Run | Yrd Mat Sub Peak Influence 340 | 20 340 . Initial 13 | . 13 . Average 132 | 6 142 . Maximum Alert Level 1 | . 1 . Low Security (%) 75 | 100 73 . Level 1 24 | . 26 . Level 2 . | . . . Level 3 . | . . . Level 4 . | . . . Level 5 . | . . . High Security . | . . . Max Security . | . . . Squads Dispatched 2 | . 2 . Investigation 1 | . 1 . Extermination . | . . . Reinforcement 1 | . 1 . Assault . | . . . Garrison . | . . . Intercept . | . . . Searches Triggered . | . . . Construction Impeded . | . . . Haulers Reinforced . | . . . Active Scanning Responses . | . . . Cargo Convoy Interrupts . | . . . Stealth | -11 -10 -10 --------- Run | Yrd Mat Sub Distress Signals 1 | . 1 . Communications Jammed . | . . . Distress Signals . | . . . Times Spotted 29 | . 17 12 Peak Tracking Total 5 | . 3 5 Tactical Retreats 1 | . . 1 Traps | -11 -10 -10 ------- Run | Yrd Mat Sub Traps Triggered 2 | . 2 . Indirectly . | . . . Trap Hack Attempts . | . . . Triggered . | . . . Disarmed . | . . . Reprogrammed . | . . . Reused . | . . . Traps Extracted . | . . . Installed . | . . . Triggered 2 | . . 2 Machines | -11 -10 -10 ---------- Run | Yrd Mat Sub Machines Disabled 5 | . 5 . Max in Single Turn 2 | . 2 . Machines Repaired . | . . . Machines Dismantled . | . . . Machines Sabotaged . | . . . Overloaded Fab Kills . | . . . Hacking | -11 -10 -10 --------- Run | Yrd Mat Sub Machines Accessed 5 | . 5 . Terminals 5 | . 5 . Fabricators . | . . . Repair Stations . | . . . Recycling Units . | . . . Scanalyzers . | . . . Garrison Access . | . . . Total Hacks 12 | . 12 . Successful 5 | . 5 . Failed 7 | . 7 . Catastrophic . | . . . Database Lockouts . | . . . Manual . | . . . Terminals 12 | . 12 . Fabricators . | . . . Repair Stations . | . . . Recycling Units . | . . . Scanalyzers . | . . . Garrison Access . | . . . Terminal Hacks 5 | . 5 . Prototype ID Bank 2 | . 2 . Emergency Access Points 1 | . 1 . Unreport Threat 1 | . 1 . Registered Components 1 | . 1 . Fabricator Hacks . | . . . Repair Station Hacks . | . . . Recycling Unit Hacks . | . . . Scanalyzer . | . . . Garrison Access Hacks . | . . . Unauthorized Hacks . | . . . Terminals . | . . . Fabricators . | . . . Repair Stations . | . . . Recycling Units . | . . . Scanalyzers . | . . . Garrison Access . | . . . Data Cores Recovered . | . . . Used . | . . . Hacking Detections 3 | . 3 . Full Trace Events 1 | . 1 . Feedback Events . | . . . Feedback Blocked . | . . . Robot Schematics Acquired . | . . . Robots Built . | . . . Authchips . | . . . Time . | . . . Total Robot Build Rating . | . . . Part Schematics Acquired . | . . . Parts Built . | . . . Authchips . | . . . Time . | . . . Total Part Build Rating . | . . . Parts Repaired . | . . . Time . | . . . Parts Recycled . | . . . Recycled Matter . | . . . Retrieved Matter . | . . . Retrieved Components . | . . . Parts Scanalyzed . | . . . Part Schematics Acquired . | . . . Parts Damaged . | . . . Bothacking | -11 -10 -10 ------------ Run | Yrd Mat Sub Used RIF Installer . | . . . Robots Hacked . | . . . Non-combat . | . . . Combat . | . . . Robot Hacks Applied . | . . . Relay Couplers Released . | . . . Fabnet Peak Effective % . | . . . Robots Rewired . | . . . Allies Hacked . | . . . Hacks Repelled . | . . . Allies | -11 -10 -10 -------- Run | Yrd Mat Sub Total Allies . | . . . Largest Group . | . . . Highest-Rated Group . | . . . Highest-Rated Ally . | . . . Total Orders . | . . . Ally Attacks . | . . . Total Damage . | . . . Kills . | . . . Allies Corrupted . | . . . Allies Melted . | . . . Intel | -11 -10 -10 ------- Run | Yrd Mat Sub Robot Analysis Total . | . . . Derelict Logs Recovered . | . . . Drone Launches . | . . . Drone Recoveries . | . . . Exploration | -11 -10 -10 ------------- Run | Yrd Mat Sub Turns Passed 2607 | 101 1192 1314 Spaces Moved 1320 | 63 746 511 Core 189 | 7 2 180 Treads 253 | . 198 55 Legs 484 | 56 229 199 Wheels 394 | . 317 77 Hover . | . . . Flight . | . . . Fastest Speed 50 | 50 100 105 Average Speed 165 | 112 127 227 Slowest Speed 400 | 120 190 400 Overloaded Moves . | . . . Propulsion Burnouts . | . . . Robots Hopped . | . . . Cave-ins Triggered . | . . . Exploration Rate (%) 47 | 5 94 43 Regions Visited 2 Branch Regions 1 Pre-discovered Areas . | . . . Known Exits Taken . | . . . Unknown Exits Taken 2 | 1 1 . Scrap Searched . | . . . Spaces Dug . | . . . Terrain Destroyed 144 | . 106 38 Melee . | . . . Projectile 3 | . . 3 AOE 141 | . 106 35 Terrain Rammed . | . . . Walls Destroyed . | . . . Machines Disabled . | . . . Actions | -11 -10 -10 --------- Run | Yrd Mat Sub Total 1563 | 77 890 596 Wait 70 | . 59 11 Move 1319 | 63 745 511 Hop . | . . . Pick Up 21 | . 8 13 Fast Attach 16 | 7 6 3 Attach 10 | . . 10 Detach 4 | . 3 1 Swap 13 | . 4 9 Drop 9 | . 2 7 Fire 97 | 6 60 31 Melee . | . . . Ram . | . . . Kick 2 | 1 1 . Crush 2 | . 2 . Escape Stasis . | . . . Rewire . | . . . Trap . | . . . Miscellaneous . | . . . Route ------- -11/Scrapyard -10/Materials (discovered 5 exits: [*Mat x3] / [*Min] / [*Sub]) -10/Subcaves History --------- Turn | Location | Event 6 | -11/Scrapyard | Discovered new exit (range 14) 102 | -11/Scrapyard | Entered Materials 225 | -10/Materials | Discovered new exit (range 8) 309 | -10/Materials | Build established: Mutant 446 | -10/Materials | Discovered new exit (range 3) 763 | -10/Materials | Discovered new exit (range 16) 859 | -10/Materials | Build established: Scavenger-Mutant 1070 | -10/Materials | Discovered new exit (range 10) 1249 | -10/Materials | Discovered new exit (range 10) 1262 | -10/Materials | Build established: Mutant 1294 | -10/Materials | Entered Subcaves 1442 | -10/Subcaves | System corruption reached 10% 1540 | -10/Subcaves | Core integrity fell below 50% 1582 | -10/Subcaves | Lost 4 parts (2n2w) 2237 | -10/Subcaves | Shifting Twisted Machinery released Unknown Leg 2301 | -10/Subcaves | Shifting Twisted Machinery released Enh. Flamer 2489 | -10/Subcaves | Core integrity fell below 20% 2608 | -10/Subcaves | Destroyed by 4V-RUW(R) with Subdweller Laser Last Messages --------------- 02442_ Lgt. Ion Engine fries itself beyond repair. 02444_ Acquired Sub. Beam Cannon. 02470_ System corrupted: Component data lost. 02475_ QR-TN9(R) emerges from the Twisted Machinery. 02484_ MD-Y29(R) destroyed. 02486_ System corrupted: Energy discharge (-24). 02490_ QR-TN9(R) destroyed. 02496_ Subatomizers dissect the Sub. Power Source. 02501_ Acquired Sub. Optics. 02506_ Dropped Lgt. Ion Engine. 02507_ Acquired Sub. Power Source. 02510_ Subatomizers dissect the Sub. Optics. 02511_ B9: W|P WLB=4RI23C9>:/4T2C